[Event "*** Titled Tuesday Blitz"]
[Site "Chess.com"]
[Date "2019.06.04"]
[Round "4"]
[White "Drags95"]
[Black "Berardino"]
[Result "1-0"]
[WhiteElo "2793"]
[BlackElo "2550"]
[TimeControl "180+2"]
[EndTime "13:51:35 PDT"]
[Termination "Drags95 won by resignation"]

1. e4 {[%clk 0:03:01.9]} 1... e5 {[%clk 0:02:57.7]} 2. Nf3 {[%clk 0:02:57]} 2...
Nc6 {[%clk 0:02:58.8]} 3. Bc4 {[%clk 0:02:57.6]} 3... Bc5 {[%clk 0:02:55.4]} 4.
O-O {[%clk 0:02:58.3]} 4... d6 {[%clk 0:02:44.3]} 5. d3 {[%clk 0:02:57.4]} 5...
h6 {[%clk 0:02:33.2]} 6. c3 {[%clk 0:02:57.3]} 6... Qf6 {[%clk 0:02:33.5]} 7.
Be3 {[%clk 0:02:52.5]} 7... Nge7 {[%clk 0:02:16.8]} 8. b4 {[%clk 0:02:40.2]}
8... Bb6 {[%clk 0:02:03.5]} 9. a4 {[%clk 0:02:40.1]} 9... a5 {[%clk 0:01:56]}
10. Bxb6 {[%clk 0:02:39]} 10... cxb6 {[%clk 0:01:56.9]} 11. b5 {[%clk
0:02:40.7]} 11... Nd8 {[%clk 0:01:50.3]} 12. Nbd2 {[%clk 0:02:41.9]} 12... g5
{[%clk 0:01:43.6]} 13. Bb3 {[%clk 0:02:27.3]} 13... Be6 {[%clk 0:01:38.3]} 14.
Nc4 {[%clk 0:02:25.2]} 14... Bxc4 {[%clk 0:01:29.6]} 15. Bxc4 {[%clk 0:02:27.1]}
15... Ne6 {[%clk 0:01:29.2]} 16. Bxe6 {[%clk 0:02:24.6]} 16... Qxe6 {[%clk
0:01:12.7]} 17. Nd2 {[%clk 0:02:25]} 17... O-O {[%clk 0:01:09.3]} 18. Nc4 {[%clk
0:02:25.9]} 18... d5 {[%clk 0:01:06.4]} 19. exd5 {[%clk 0:02:26]} 19... Nxd5
{[%clk 0:01:07.1]} 20. Re1 {[%clk 0:02:16.6]} 20... f6 {[%clk 0:00:57.7]} 21.
Qf3 {[%clk 0:01:59.9]} 21... Rac8 {[%clk 0:00:40]} 22. g3 {[%clk 0:01:31.7]}
22... Rf7 {[%clk 0:00:40.5]} 23. Rac1 {[%clk 0:01:30.9]} 23... Kg7 {[%clk
0:00:36.8]} 24. Qe2 {[%clk 0:01:19.3]} 24... Rfc7 {[%clk 0:00:32.5]} 25. Qe4
{[%clk 0:01:15.4]} 25... Ne7 {[%clk 0:00:21.3]} 26. f4 {[%clk 0:01:07]} 26...
gxf4 {[%clk 0:00:20.5]} 27. gxf4 {[%clk 0:01:07.8]} 27... Rxc4 {[%clk
0:00:19.4]} 28. dxc4 {[%clk 0:01:08.4]} 28... Rxc4 {[%clk 0:00:21.3]} 29. Qg2+
{[%clk 0:00:54.2]} 29... Kh8 {[%clk 0:00:22.5]} 30. Kh1 {[%clk 0:00:54.6]} 30...
Rxf4 {[%clk 0:00:23.3]} 31. Rg1 {[%clk 0:00:52.6]} 31... Qf7 {[%clk 0:00:22.1]}
32. Qxb7 {[%clk 0:00:52.2]} 32... Rh4 {[%clk 0:00:22]} 33. Rcd1 {[%clk
0:00:51.3]} 33... Kh7 {[%clk 0:00:12.5]} 34. Rd7 {[%clk 0:00:42.1]} 34... Rxh2+
{[%clk 0:00:08.7]} 35. Kxh2 {[%clk 0:00:44]} 35... Qh5+ {[%clk 0:00:10.1]} 36.
Kg3 {[%clk 0:00:40.7]} 36... Qg5+ {[%clk 0:00:10.4]} 37. Kf2 {[%clk 0:00:37.1]}
37... Qh4+ {[%clk 0:00:11.3]} 38. Rg3 {[%clk 0:00:31.2]} 1-0

[Event "*** Titled Tuesday Blitz"]
[Site "Chess.com"]
[Date "2019.06.04"]
[Round "4"]
[White "26andrej26"]
[Black "ruvat"]
[Result "1/2-1/2"]
[WhiteElo "2516"]
[BlackElo "2372"]
[TimeControl "180+2"]
[EndTime "13:51:35 PDT"]
[Termination "Game drawn by repetition"]

1. e4 {[%clk 0:03:01.9]} 1... d6 {[%clk 0:03:00.7]} 2. d4 {[%clk 0:03:02.9]}
2... Nf6 {[%clk 0:03:01.8]} 3. Nc3 {[%clk 0:03:04.2]} 3... g6 {[%clk 0:03:03]}
4. f4 {[%clk 0:03:05.4]} 4... Bg7 {[%clk 0:03:04.2]} 5. e5 {[%clk 0:03:07.1]}
5... Nfd7 {[%clk 0:03:04]} 6. Nf3 {[%clk 0:03:07.6]} 6... c5 {[%clk 0:03:04.9]}
7. e6 {[%clk 0:03:06]} 7... fxe6 {[%clk 0:03:04.4]} 8. h4 {[%clk 0:02:41.3]}
8... cxd4 {[%clk 0:02:53.6]} 9. Nxd4 {[%clk 0:02:38.1]} 9... Nc5 {[%clk
0:02:19.9]} 10. h5 {[%clk 0:02:36]} 10... Nc6 {[%clk 0:02:13.9]} 11. Nxc6 {[%clk
0:02:27.5]} 11... bxc6 {[%clk 0:02:13.9]} 12. hxg6 {[%clk 0:02:28.9]} 12... hxg6
{[%clk 0:02:14.3]} 13. Rxh8+ {[%clk 0:02:29.8]} 13... Bxh8 {[%clk 0:02:15.3]}
14. Qg4 {[%clk 0:02:24.5]} 14... Kf7 {[%clk 0:02:13.7]} 15. Bd2 {[%clk
0:02:08.7]} 15... Bf6 {[%clk 0:01:36.1]} 16. O-O-O {[%clk 0:01:55.3]} 16... e5
{[%clk 0:01:32.9]} 17. Qf3 {[%clk 0:01:42.7]} 17... Kg8 {[%clk 0:01:07.9]} 18.
Qxc6 {[%clk 0:01:23.3]} 18... Bb7 {[%clk 0:01:00.8]} 19. Qb5 {[%clk 0:01:23.7]}
19... Rb8 {[%clk 0:00:56.6]} 20. Qc4+ {[%clk 0:01:20.4]} 20... Kg7 {[%clk
0:00:55.1]} 21. fxe5 {[%clk 0:01:14]} 21... Bxe5 {[%clk 0:00:55.6]} 22. Qh4
{[%clk 0:01:14.3]} 22... Bf6 {[%clk 0:00:35.9]} 23. Qh6+ {[%clk 0:01:13.4]}
23... Kf7 {[%clk 0:00:36.9]} 24. Bc4+ {[%clk 0:01:08.6]} 24... d5 {[%clk
0:00:29.5]} 25. Qh7+ {[%clk 0:01:06.4]} 25... Ke6 {[%clk 0:00:23.6]} 26. Be3
{[%clk 0:00:48.5]} 26... Qh8 {[%clk 0:00:18.8]} 27. Qxg6 {[%clk 0:00:44.7]}
27... dxc4 {[%clk 0:00:10.1]} 28. Qg4+ {[%clk 0:00:38.2]} 28... Kf7 {[%clk
0:00:09.4]} 29. Qxc4+ {[%clk 0:00:39.1]} 29... Kf8 {[%clk 0:00:09.5]} 30. Bxc5
{[%clk 0:00:39.1]} 30... Bxg2 {[%clk 0:00:08.7]} 31. a3 {[%clk 0:00:21.5]} 31...
Bxc3 {[%clk 0:00:07.5]} 32. bxc3 {[%clk 0:00:22]} 32... Qh6+ {[%clk 0:00:07.8]}
33. Rd2 {[%clk 0:00:21.2]} 33... Qh1+ {[%clk 0:00:08.1]} 34. Rd1 {[%clk
0:00:22.6]} 34... Qh6+ {[%clk 0:00:09]} 35. Rd2 {[%clk 0:00:24.1]} 35... Qh1+
{[%clk 0:00:10.1]} 36. Rd1 {[%clk 0:00:25.5]} 36... Qh6+ {[%clk 0:00:11.2]}
1/2-1/2

[Event "*** Titled Tuesday Blitz"]
[Site "Chess.com"]
[Date "2019.06.04"]
[Round "4"]
[White "Chesska7"]
[Black "Komissarov_alex"]
[Result "1-0"]
[WhiteElo "2111"]
[BlackElo "2102"]
[TimeControl "180+2"]
[EndTime "13:51:37 PDT"]
[Termination "Chesska7 won on time"]

1. d4 {[%clk 0:02:58.4]} 1... Nf6 {[%clk 0:02:58.6]} 2. Nc3 {[%clk 0:02:58.6]}
2... d5 {[%clk 0:02:57]} 3. Bf4 {[%clk 0:02:58.1]} 3... g6 {[%clk 0:02:56.9]} 4.
e3 {[%clk 0:02:58.1]} 4... Bg7 {[%clk 0:02:55.2]} 5. Nb5 {[%clk 0:02:58.6]} 5...
Na6 {[%clk 0:02:49.7]} 6. a3 {[%clk 0:02:58.8]} 6... O-O {[%clk 0:02:38.3]} 7.
Nf3 {[%clk 0:02:57.3]} 7... Bd7 {[%clk 0:02:30.4]} 8. h3 {[%clk 0:02:50.3]} 8...
c5 {[%clk 0:02:19.6]} 9. c3 {[%clk 0:02:23.8]} 9... Ne4 {[%clk 0:01:58.4]} 10.
a4 {[%clk 0:01:58.9]} 10... cxd4 {[%clk 0:01:47.2]} 11. exd4 {[%clk 0:01:58.4]}
11... f6 {[%clk 0:01:39.5]} 12. Qb3 {[%clk 0:01:45.5]} 12... Re8 {[%clk
0:01:30.2]} 13. Qxd5+ {[%clk 0:01:43.1]} 13... Kh8 {[%clk 0:01:24.1]} 14. Qxe4
{[%clk 0:01:43.4]} 14... e5 {[%clk 0:01:14]} 15. dxe5 {[%clk 0:01:37.9]} 15...
Bc6 {[%clk 0:00:57.1]} 16. Qd3 {[%clk 0:01:22.4]} 16... fxe5 {[%clk 0:00:53.8]}
17. Qxd8 {[%clk 0:01:19.6]} 17... Raxd8 {[%clk 0:00:44.5]} 18. Be3 {[%clk
0:01:19.6]} 18... e4 {[%clk 0:00:43.2]} 19. Nfd4 {[%clk 0:01:18.9]} 19... Bd5
{[%clk 0:00:43.1]} 20. Be2 {[%clk 0:01:15.7]} 20... Nc5 {[%clk 0:00:42.4]} 21.
Nc7 {[%clk 0:01:11.1]} 21... Re7 {[%clk 0:00:33]} 22. Bg5 {[%clk 0:01:11.2]}
22... Rxc7 {[%clk 0:00:31.4]} 23. Bxd8 {[%clk 0:01:11.4]} 23... Rd7 {[%clk
0:00:31.9]} 24. Bg5 {[%clk 0:01:10.8]} 24... Nd3+ {[%clk 0:00:31.9]} 25. Bxd3
{[%clk 0:01:10.5]} 25... exd3 {[%clk 0:00:31.3]} 26. Be3 {[%clk 0:01:09.6]}
26... Bxg2 {[%clk 0:00:29.1]} 27. Rg1 {[%clk 0:01:06.1]} 27... Bxh3 {[%clk
0:00:28.6]} 28. Kd2 {[%clk 0:01:07]} 28... Bf5 {[%clk 0:00:26.3]} 29. Nxf5
{[%clk 0:01:07]} 29... gxf5 {[%clk 0:00:25.4]} 30. Rg5 {[%clk 0:01:03.4]} 30...
Bh6 {[%clk 0:00:23.9]} 31. Rxf5 {[%clk 0:01:01.5]} 31... Bxe3+ {[%clk
0:00:23.2]} 32. Kxe3 {[%clk 0:01:00.3]} 32... Re7+ {[%clk 0:00:21.2]} 33. Kxd3
{[%clk 0:01:00.4]} 33... Rd7+ {[%clk 0:00:21.7]} 34. Ke4 {[%clk 0:01:00.8]}
34... Re7+ {[%clk 0:00:22.1]} 35. Re5 {[%clk 0:01:01.6]} 35... Rf7 {[%clk
0:00:21.8]} 36. f4 {[%clk 0:01:02.6]} 1-0

[Event "*** Titled Tuesday Blitz"]
[Site "Chess.com"]
[Date "2019.06.04"]
[Round "4"]
[White "CzechmVIII"]
[Black "aa175"]
[Result "0-1"]
[WhiteElo "2084"]
[BlackElo "2007"]
[TimeControl "180+2"]
[EndTime "13:51:41 PDT"]
[Termination "aa175 won by checkmate"]

1. e4 {[%clk 0:03:01.9]} 1... e5 {[%clk 0:03:00.5]} 2. Nf3 {[%clk 0:03:02.9]}
2... f5 {[%clk 0:03:00.6]} 3. Nxe5 {[%clk 0:03:03]} 3... Nc6 {[%clk 0:03:01.4]}
4. d4 {[%clk 0:02:54.4]} 4... fxe4 {[%clk 0:02:55.2]} 5. Qh5+ {[%clk 0:02:47]}
5... g6 {[%clk 0:02:51.5]} 6. Nxc6 {[%clk 0:02:17.5]} 6... bxc6 {[%clk
0:02:00.1]} 7. Qe5+ {[%clk 0:02:15.9]} 7... Kf7 {[%clk 0:01:59.6]} 8. Qxh8
{[%clk 0:02:13.7]} 8... Nf6 {[%clk 0:01:59.7]} 9. Bg5 {[%clk 0:02:06.9]} 9...
Bb4+ {[%clk 0:01:59.9]} 10. c3 {[%clk 0:02:08.4]} 10... Bxc3+ {[%clk 0:01:56.6]}
11. Nxc3 {[%clk 0:02:07.7]} 11... Qxh8 {[%clk 0:01:58.5]} 12. Bc4+ {[%clk
0:01:39]} 12... d5 {[%clk 0:01:58.6]} 13. Bb3 {[%clk 0:01:40.3]} 13... c5 {[%clk
0:02:00.5]} 14. dxc5 {[%clk 0:01:34.1]} 14... c6 {[%clk 0:01:58.5]} 15. O-O
{[%clk 0:01:32.5]} 15... h6 {[%clk 0:01:56.5]} 16. Be3 {[%clk 0:01:30.5]} 16...
Ba6 {[%clk 0:01:54]} 17. Rfe1 {[%clk 0:01:29.3]} 17... Rd8 {[%clk 0:01:52.4]}
18. Bd4 {[%clk 0:01:30.4]} 18... Kf8 {[%clk 0:01:25.2]} 19. f3 {[%clk
0:01:19.3]} 19... exf3 {[%clk 0:01:11.8]} 20. Re3 {[%clk 0:01:19.6]} 20... f2+
{[%clk 0:01:08.3]} 21. Kh1 {[%clk 0:01:03.4]} 21... f1=Q+ {[%clk 0:01:08.2]} 22.
Rxf1 {[%clk 0:01:04.3]} 22... Bxf1 {[%clk 0:01:09]} 23. Rf3 {[%clk 0:01:05.7]}
23... Ke7 {[%clk 0:00:15]} 24. Bxf6+ {[%clk 0:00:45.1]} 24... Qxf6 {[%clk
0:00:15.4]} 25. Rxf6 {[%clk 0:00:46.8]} 25... Kxf6 {[%clk 0:00:17.3]} 26. Kg1
{[%clk 0:00:45.3]} 26... Bc4 {[%clk 0:00:18.6]} 27. Bxc4 {[%clk 0:00:39.1]}
27... dxc4 {[%clk 0:00:20.5]} 28. Ne4+ {[%clk 0:00:40.6]} 28... Ke5 {[%clk
0:00:20.5]} 29. Nd6 {[%clk 0:00:41.8]} 29... Kd4 {[%clk 0:00:12.3]} 30. b4
{[%clk 0:00:34.4]} 30... c3 {[%clk 0:00:11]} 31. b5 {[%clk 0:00:22.8]} 31... c2
{[%clk 0:00:11.3]} 32. h3 {[%clk 0:00:23.1]} 32... c1=Q+ {[%clk 0:00:13.2]} 33.
Kh2 {[%clk 0:00:23.9]} 33... Qf4+ {[%clk 0:00:14.8]} 34. Kh1 {[%clk 0:00:22.8]}
34... Rxd6 {[%clk 0:00:13.7]} 35. cxd6 {[%clk 0:00:23.7]} 35... Qxd6 {[%clk
0:00:15.6]} 36. bxc6 {[%clk 0:00:25.3]} 36... Qxc6 {[%clk 0:00:17.5]} 37. Kh2
{[%clk 0:00:26.3]} 37... Ke3 {[%clk 0:00:19.2]} 38. a4 {[%clk 0:00:27.5]} 38...
Kf2 {[%clk 0:00:21.1]} 39. a5 {[%clk 0:00:29.2]} 39... Qa6 {[%clk 0:00:22.8]}
40. h4 {[%clk 0:00:28]} 40... Qxa5 {[%clk 0:00:24.7]} 41. h5 {[%clk 0:00:28.4]}
41... Qb6 {[%clk 0:00:26.6]} 42. hxg6 {[%clk 0:00:28.6]} 42... Qb7 {[%clk
0:00:28.5]} 43. Kh3 {[%clk 0:00:28]} 43... Qxg2+ {[%clk 0:00:30.3]} 44. Kh4
{[%clk 0:00:29.6]} 44... Qg5+ {[%clk 0:00:31.2]} 45. Kh3 {[%clk 0:00:30.6]}
45... Qxg6 {[%clk 0:00:32.8]} 46. Kh4 {[%clk 0:00:31.3]} 46... Qg5+ {[%clk
0:00:34.7]} 47. Kh3 {[%clk 0:00:32.4]} 47... a5 {[%clk 0:00:36.6]} 48. Kh2
{[%clk 0:00:33.6]} 48... a4 {[%clk 0:00:38.5]} 49. Kh3 {[%clk 0:00:35]} 49... a3
{[%clk 0:00:40.4]} 50. Kh2 {[%clk 0:00:36.6]} 50... a2 {[%clk 0:00:42.3]} 51.
Kh3 {[%clk 0:00:38.2]} 51... a1=Q {[%clk 0:00:44.2]} 52. Kh2 {[%clk 0:00:39.7]}
52... Qag7 {[%clk 0:00:46.1]} 53. Kh3 {[%clk 0:00:41]} 53... Qg3# {[%clk
0:00:47.5]} 0-1

[Event "*** Titled Tuesday Blitz"]
[Site "Chess.com"]
[Date "2019.06.04"]
[Round "4"]
[White "LawrenceTrent"]
[Black "nrvisakh"]
[Result "0-1"]
[WhiteElo "2689"]
[BlackElo "2753"]
[TimeControl "180+2"]
[EndTime "13:51:46 PDT"]
[Termination "nrvisakh won by resignation"]

1. e4 {[%clk 0:03:01.9]} 1... c5 {[%clk 0:02:58.7]} 2. Nc3 {[%clk 0:03:03.4]}
2... d6 {[%clk 0:02:59]} 3. f4 {[%clk 0:03:03.4]} 3... g6 {[%clk 0:02:55.2]} 4.
Nf3 {[%clk 0:03:04.2]} 4... Bg7 {[%clk 0:02:55.9]} 5. Bb5+ {[%clk 0:03:05.3]}
5... Bd7 {[%clk 0:02:56.1]} 6. Bc4 {[%clk 0:03:06.4]} 6... e6 {[%clk 0:02:53.5]}
7. O-O {[%clk 0:03:07.3]} 7... Ne7 {[%clk 0:02:34.8]} 8. d3 {[%clk 0:03:07.1]}
8... Nbc6 {[%clk 0:02:34.5]} 9. a3 {[%clk 0:03:07.9]} 9... Nd4 {[%clk
0:02:31.1]} 10. Nxd4 {[%clk 0:03:07.8]} 10... cxd4 {[%clk 0:02:30.7]} 11. Ne2
{[%clk 0:03:08.1]} 11... d5 {[%clk 0:02:31.9]} 12. Bb3 {[%clk 0:03:09]} 12...
dxe4 {[%clk 0:02:22.1]} 13. dxe4 {[%clk 0:03:10.4]} 13... Bb5 {[%clk 0:02:23.7]}
14. Rf3 {[%clk 0:03:02.7]} 14... O-O {[%clk 0:02:11.4]} 15. Ng3 {[%clk
0:03:01.2]} 15... Rc8 {[%clk 0:02:07.8]} 16. f5 {[%clk 0:03:01.6]} 16... exf5
{[%clk 0:01:49.6]} 17. exf5 {[%clk 0:03:01]} 17... Nd5 {[%clk 0:01:38.5]} 18.
Ne4 {[%clk 0:02:44.9]} 18... Ne3 {[%clk 0:01:24.8]} 19. Bxe3 {[%clk 0:02:36.3]}
19... dxe3 {[%clk 0:01:26.7]} 20. Qxd8 {[%clk 0:02:00.2]} 20... Rcxd8 {[%clk
0:01:25.9]} 21. c3 {[%clk 0:02:02.1]} 21... e2 {[%clk 0:01:20.3]} 22. fxg6
{[%clk 0:01:58.9]} 22... hxg6 {[%clk 0:01:20]} 23. Re1 {[%clk 0:01:56.3]} 23...
Bh6 {[%clk 0:01:05.3]} 24. c4 {[%clk 0:01:47.6]} 24... Bc6 {[%clk 0:01:05.4]}
25. Rxe2 {[%clk 0:01:48.6]} 25... f5 {[%clk 0:01:06.4]} 26. Rh3 {[%clk
0:01:44.6]} 26... Bxe4 {[%clk 0:00:40.4]} 27. Rxh6 {[%clk 0:01:44.3]} 27... Kg7
{[%clk 0:00:42.3]} 28. Rh3 {[%clk 0:01:42.4]} 28... Rd4 {[%clk 0:00:42.5]} 29.
Rc3 {[%clk 0:01:39.3]} 29... Rfd8 {[%clk 0:00:42.2]} 30. Bc2 {[%clk 0:01:39.2]}
30... Bc6 {[%clk 0:00:39.1]} 31. b4 {[%clk 0:01:30.3]} 31... b6 {[%clk
0:00:39.7]} 32. c5 {[%clk 0:01:26.2]} 32... b5 {[%clk 0:00:28.8]} 33. Re6 {[%clk
0:01:23.5]} 33... Bd5 {[%clk 0:00:26.5]} 34. Re7+ {[%clk 0:01:17.3]} 34... Kf6
{[%clk 0:00:26.4]} 35. Rxa7 {[%clk 0:01:18.9]} 35... Rd2 {[%clk 0:00:27.2]} 36.
Ra6+ {[%clk 0:01:11]} 36... Kg7 {[%clk 0:00:28.1]} 37. Rd6 {[%clk 0:01:11.9]}
37... Re8 {[%clk 0:00:26]} 38. Rf3 {[%clk 0:00:22.7]} 38... Re1+ {[%clk
0:00:24.9]} 39. Rf1 {[%clk 0:00:24]} 39... Rxg2+ {[%clk 0:00:25.9]} 0-1

[Event "*** Titled Tuesday Blitz"]
[Site "Chess.com"]
[Date "2019.06.04"]
[Round "4"]
[White "NoGalloNoParty"]
[Black "xberli"]
[Result "1-0"]
[WhiteElo "2360"]
[BlackElo "2474"]
[TimeControl "180+2"]
[EndTime "13:51:53 PDT"]
[Termination "NoGalloNoParty won by resignation"]

1. d4 {[%clk 0:02:59.9]} 1... Nf6 {[%clk 0:03:00.4]} 2. Nf3 {[%clk 0:03:00.9]}
2... g6 {[%clk 0:03:01.5]} 3. c4 {[%clk 0:03:02.2]} 3... Bg7 {[%clk 0:03:02.6]}
4. g3 {[%clk 0:03:03]} 4... O-O {[%clk 0:03:03.1]} 5. Bg2 {[%clk 0:03:04.3]}
5... c6 {[%clk 0:03:04.6]} 6. Nc3 {[%clk 0:03:04.2]} 6... d6 {[%clk 0:03:05.2]}
7. O-O {[%clk 0:03:04.5]} 7... Bf5 {[%clk 0:03:06.2]} 8. Nd2 {[%clk 0:03:03.7]}
8... e5 {[%clk 0:03:02.5]} 9. e4 {[%clk 0:03:03.1]} 9... Be6 {[%clk 0:03:03]}
10. d5 {[%clk 0:03:03.7]} 10... cxd5 {[%clk 0:03:04.1]} 11. cxd5 {[%clk
0:03:04.7]} 11... Bd7 {[%clk 0:03:03.5]} 12. Nc4 {[%clk 0:03:05.2]} 12... Qe7
{[%clk 0:03:00.1]} 13. b3 {[%clk 0:02:57.6]} 13... Na6 {[%clk 0:02:58.6]} 14.
Ba3 {[%clk 0:02:47]} 14... Ne8 {[%clk 0:02:55.8]} 15. Bb2 {[%clk 0:02:14.4]}
15... Rc8 {[%clk 0:02:53.9]} 16. Rc1 {[%clk 0:02:14.4]} 16... b5 {[%clk
0:02:47.3]} 17. Na5 {[%clk 0:02:14.8]} 17... Qd8 {[%clk 0:02:42.5]} 18. Nc6
{[%clk 0:02:15.4]} 18... Bxc6 {[%clk 0:02:43]} 19. dxc6 {[%clk 0:02:17.3]} 19...
Rxc6 {[%clk 0:02:42.8]} 20. Nd5 {[%clk 0:02:17.8]} 20... Rxc1 {[%clk 0:02:39.6]}
21. Qxc1 {[%clk 0:02:19.7]} 21... Nc5 {[%clk 0:02:40.1]} 22. Rd1 {[%clk
0:02:17.9]} 22... Nf6 {[%clk 0:02:34.9]} 23. Bxe5 {[%clk 0:02:13.4]} 23... dxe5
{[%clk 0:02:29.9]} 24. Qxc5 {[%clk 0:02:12.9]} 24... Nxd5 {[%clk 0:02:28.2]} 25.
Rxd5 {[%clk 0:02:06.3]} 25... Qa5 {[%clk 0:02:28.8]} 26. Bf1 {[%clk 0:01:51.8]}
26... Qxa2 {[%clk 0:02:26]} 27. Qxb5 {[%clk 0:01:50.3]} 27... h5 {[%clk
0:02:24.4]} 28. Rd7 {[%clk 0:01:48.4]} 28... h4 {[%clk 0:02:21]} 29. Qd5 {[%clk
0:01:42.3]} 29... hxg3 {[%clk 0:02:19.4]} 30. hxg3 {[%clk 0:01:42.9]} 30... Qa1
{[%clk 0:02:15]} 31. Kg2 {[%clk 0:01:42.8]} 31... Qd4 {[%clk 0:01:52.9]} 32. Qb7
{[%clk 0:01:10.2]} 32... Qb6 {[%clk 0:01:30]} 33. Qxb6 {[%clk 0:00:59.7]} 33...
axb6 {[%clk 0:01:31.9]} 34. Bc4 {[%clk 0:01:00.5]} 34... Bf6 {[%clk 0:01:30.1]}
35. Rd6 {[%clk 0:00:59.5]} 35... Bd8 {[%clk 0:01:24.4]} 36. Rd7 {[%clk
0:01:00.3]} 36... Kg7 {[%clk 0:01:12.9]} 37. f4 {[%clk 0:01:00.7]} 37... exf4
{[%clk 0:01:10.5]} 38. gxf4 {[%clk 0:01:01.6]} 38... g5 {[%clk 0:01:11.2]} 39.
Kf3 {[%clk 0:00:50.1]} 39... gxf4 {[%clk 0:01:10.2]} 40. Kxf4 {[%clk 0:00:52]}
40... Bh4 {[%clk 0:01:10.8]} 41. e5 {[%clk 0:00:52.1]} 41... Kg6 {[%clk
0:01:05]} 42. Bd3+ {[%clk 0:00:52.3]} 42... Kg7 {[%clk 0:01:05.8]} 43. Kf5
{[%clk 0:00:53.2]} 43... Bf2 {[%clk 0:01:02.8]} 44. Bc4 {[%clk 0:00:52.9]} 44...
Bc5 {[%clk 0:01:03.1]} 45. e6 {[%clk 0:00:53]} 45... Kh6 {[%clk 0:01:00.7]} 46.
e7 {[%clk 0:00:43.9]} 46... Re8 {[%clk 0:00:57.8]} 47. Kf6 {[%clk 0:00:44.5]}
47... Rg8 {[%clk 0:00:45.4]} 48. Bxf7 {[%clk 0:00:43.3]} 48... Bxe7+ {[%clk
0:00:41.7]} 49. Kxe7 {[%clk 0:00:41.6]} 49... Rb8 {[%clk 0:00:39.2]} 50. Kd6
{[%clk 0:00:35.5]} 50... Kg5 {[%clk 0:00:36.7]} 51. Kc6 {[%clk 0:00:35.7]} 1-0

[Event "*** Titled Tuesday Blitz"]
[Site "Chess.com"]
[Date "2019.06.04"]
[Round "4"]
[White "oogee"]
[Black "Babas"]
[Result "0-1"]
[WhiteElo "2325"]
[BlackElo "2386"]
[TimeControl "180+2"]
[EndTime "13:51:54 PDT"]
[Termination "Babas won by resignation"]

1. d4 {[%clk 0:03:01.9]} 1... Nf6 {[%clk 0:02:55.4]} 2. c4 {[%clk 0:03:02.4]}
2... c5 {[%clk 0:02:56.2]} 3. d5 {[%clk 0:03:02.9]} 3... e6 {[%clk 0:02:57.7]}
4. Nc3 {[%clk 0:03:03.7]} 4... exd5 {[%clk 0:02:59.1]} 5. cxd5 {[%clk
0:03:05.5]} 5... d6 {[%clk 0:03:00.6]} 6. Nf3 {[%clk 0:03:07]} 6... g6 {[%clk
0:03:01.2]} 7. Nd2 {[%clk 0:03:08.2]} 7... Ng4 {[%clk 0:02:59.5]} 8. h3 {[%clk
0:02:21.6]} 8... Ne5 {[%clk 0:02:58.5]} 9. g3 {[%clk 0:02:05.4]} 9... Qe7 {[%clk
0:02:38.8]} 10. Qc2 {[%clk 0:02:05.7]} 10... Bg7 {[%clk 0:02:31.9]} 11. Bg2
{[%clk 0:02:05.6]} 11... O-O {[%clk 0:02:23]} 12. O-O {[%clk 0:02:06]} 12... Na6
{[%clk 0:02:19.9]} 13. Re1 {[%clk 0:01:47.7]} 13... Bf5 {[%clk 0:02:03.6]} 14.
Qd1 {[%clk 0:01:32.6]} 14... Rab8 {[%clk 0:01:56.6]} 15. f4 {[%clk 0:01:29.5]}
15... Nb4 {[%clk 0:01:22.7]} 16. e4 {[%clk 0:01:26.8]} 16... Ned3 {[%clk
0:01:19.8]} 17. Re2 {[%clk 0:01:21.5]} 17... Bd7 {[%clk 0:01:01.1]} 18. a3
{[%clk 0:01:13.4]} 18... Na6 {[%clk 0:01:02.1]} 19. Nf3 {[%clk 0:01:03.1]} 19...
c4 {[%clk 0:01:02]} 20. Be3 {[%clk 0:01:01.5]} 20... Nac5 {[%clk 0:01:02.7]} 21.
Ne1 {[%clk 0:00:38.1]} 21... Nxb2 {[%clk 0:00:27]} 22. Rxb2 {[%clk 0:00:27.1]}
22... Bxc3 {[%clk 0:00:27.9]} 23. Bd4 {[%clk 0:00:26.5]} 23... Bxd4+ {[%clk
0:00:24.1]} 24. Qxd4 {[%clk 0:00:26.8]} 24... Nb3 {[%clk 0:00:25.7]} 25. Qd1
{[%clk 0:00:23]} 25... Nxa1 {[%clk 0:00:26.1]} 26. Qxa1 {[%clk 0:00:24.5]} 26...
b5 {[%clk 0:00:27.5]} 27. Re2 {[%clk 0:00:25]} 27... f6 {[%clk 0:00:28.6]} 28.
Nf3 {[%clk 0:00:25]} 28... a5 {[%clk 0:00:29]} 29. e5 {[%clk 0:00:22.3]} 29...
dxe5 {[%clk 0:00:28.2]} 30. fxe5 {[%clk 0:00:23.5]} 30... fxe5 {[%clk
0:00:24.3]} 31. Nxe5 {[%clk 0:00:23.8]} 31... Qf6 {[%clk 0:00:25.3]} 32. Qd4
{[%clk 0:00:22.7]} 32... Bf5 {[%clk 0:00:25.3]} 33. d6 {[%clk 0:00:23.1]} 33...
Rfd8 {[%clk 0:00:25.9]} 34. Qd5+ {[%clk 0:00:21.3]} 34... Kg7 {[%clk 0:00:25.9]}
35. Nc6 {[%clk 0:00:22]} 35... Rxd6 {[%clk 0:00:26.5]} 36. Qf3 {[%clk
0:00:18.6]} 36... Rf8 {[%clk 0:00:26.2]} 37. Re7+ {[%clk 0:00:16.9]} 37... Rf7
{[%clk 0:00:27.3]} 38. Re8 {[%clk 0:00:17.4]} 38... Bd7 {[%clk 0:00:19.1]} 39.
Qxf6+ {[%clk 0:00:14.3]} 39... Rdxf6 {[%clk 0:00:20.1]} 40. Re7 {[%clk 0:00:13]}
40... Bxc6 {[%clk 0:00:20.7]} 41. Rxf7+ {[%clk 0:00:13]} 41... Kxf7 {[%clk
0:00:22.6]} 42. Bxc6 {[%clk 0:00:13.1]} 42... Rxc6 {[%clk 0:00:24.5]} 0-1